Cogmind - Beta 13 @@@ ROGUE MODE // 2024.07.04 @ 00:17:34 Player: Selene Result: Destroyed by as-77375 with Assembled F-torch Performance ------------- Evolutions (0) 0 Regions Visited (2) 400 Robots Destroyed (18) 90 Value Destroyed (346) 346 Prototype IDs (2) 40 Alien Tech Used (0) 0 Bonus (0) 0 TOTAL SCORE: 876 Bonus ------- None Cogmind --------- Core Integrity 0/250 Matter 279/300 Energy 236/250 System Corruption 0% Temperature Cool (38) Movement Treading (160) Location -10/Mines Parts ------- > --- POWER (1) -------- Ion Engine > --- PROPULSION (2) --- Light Treads Light Treads > --- UTILITY (2) ------ Improved Heat Sink Large Storage Unit > --- WEAPON (2) ------- Particle Gun Light Assault Rifle > --- INVENTORY (15) --- Light Ion Engine Aluminum Leg Aluminum Leg Aluminum Leg Medium Storage Unit Large Storage Unit Visual Processing Unit Signal Interpreter Improved Terrain Scanner EM Pulse Gun Light Assault Rifle Light Assault Rifle Peak State ------------ > --- POWER ------------ Light Ion Engine > --- PROPULSION ------- Aluminum Leg Aluminum Leg > --- UTILITY ---------- Improved Heat Sink Large Storage Unit > --- WEAPON ----------- Medium Laser Particle Gun > --- INVENTORY -------- Ion Engine Ion Engine Light Treads Light Treads Aluminum Leg Aluminum Leg Compact Wheel Compact Wheel Small Storage Unit Medium Storage Unit Improved Terrain Scanner Seismic Detector EM Pulse Gun [Rating: 11] Favorites ----------- Power Ion Engine Engine Ion Engine Propulsion Aluminum Leg Treads Light Treads Leg Aluminum Leg Utility Large Storage Unit Device Seismic Detector Storage Large Storage Unit Weapon Medium Laser Energy Gun Medium Laser Ballistic Gun Assault Rifle Build | -11 -10 -10 ------- Run | Yrd Mat Min Slots Evolved . | . . . Power . | . . . Propulsion . | . . . Utility . | . . . Weapon . | . . . Parts Attached 25 | 7 12 6 Power 5 | 1 2 2 Engine 5 | 1 2 2 Core . | . . . Reactor . | . . . Propulsion 6 | 2 2 2 Treads 2 | . . 2 Leg 4 | 2 2 . Wheel . | . . . Hover . | . . . Flight . | . . . Utility 10 | 2 7 1 Device 6 | 1 4 1 Storage 4 | 1 3 . Processor . | . . . Hackware . | . . . Protection . | . . . Artifact . | . . . Weapon 4 | 2 1 1 Energy Gun 2 | 1 1 . Energy Cannon . | . . . Ballistic Gun 2 | 1 . 1 Ballistic Cannon . | . . . Launcher . | . . . Special Weapon . | . . . Impact Weapon . | . . . Slashing Weapon . | . . . Piercing Weapon . | . . . Special Melee Weapon . | . . . Unidentified Prototypes . | . . . Parts Lost 6 | . 1 5 Power 2 | . . 2 Propulsion 1 | . . 1 Utility 1 | . . 1 Weapon 2 | . 1 1 Highest Loss Streak 4 | . 1 4 To Critical Strikes . | . . . Average Slot Usage (%) 98 | . 100 94 Engine 13 | . 14 12 Treads 3 | . . 16 Leg 24 | . 28 10 Device 13 | . 14 13 Storage 14 | . 14 14 Energy Gun 22 | . 24 18 Ballistic Gun 4 | . 3 7 Naked Turns . | . . . Heaviest Build 31 | 15 31 31 Greatest Support 40 | 20 20 40 Greatest Overweight (x) 1 | 1 1 1 Average Overweight (x) . | . . . Largest Inventory Capacity 15 | 8 15 15 Average Capacity 13 | 7 14 15 Most Carried 15 | 7 15 15 Average Carried 11 | 5 12 12 Final Capacity 15 | 8 15 15 Final Carried 15 | 7 15 12 Class Distribution -------------------- 61% | Mutant 38% | Scavenger-Mutant Dominant Class ---------------- Scavenger-Mutant | -10/Materials Mutant | -10/Mines Resources | -11 -10 -10 ----------- Run | Yrd Mat Min Matter Collected 461 | 297 100 64 Remotely . | . . . Salvage Created 630 | 143 373 114 Parts 37 | 13 18 6 Haulers Intercepted . | . . . Recyclers Shooed 1 | . 1 . Parts Field Recycled . | . . . Retrieved Matter . | . . . Parts Self-Destructed . | . . . Prevented . | . . . Kills | -11 -10 -10 ------- Run | Yrd Mat Min Combat Hostiles Destroyed 15 | . 6 9 Guns 14 | . 5 9 Classes Destroyed 8 | 2 4 2 Builder 1 | . 1 . Tunneler 3 | 3 . . Recycler 2 | 1 1 . Operator 1 | . 1 . Watcher 2 | . 2 . Swarmer 3 | . . 3 Grunt 6 | . 6 . Assembled 6 | . . 6 Best Kill Streak 6 | 2 2 6 Combat Bots Only 6 | . 2 6 Max Kills in Single Turn 1 | 1 1 1 Gunslinging . | . . . Exploded . | . . . Melee . | . . . Uniques/NPCs Destroyed . | . . . Combat | -11 -10 -10 -------- Run | Yrd Mat Min Hostile Shots Fired 136 | . 67 69 Missed 36 | . 15 21 Damage Taken 1104 | . 632 472 Core 255 | . 168 87 Absorbed by Shields . | . . . Core Remaining (%) 100 | 100 . . Volleys Fired 67 | 9 30 28 Largest 2 | 2 2 2 Hottest 115 | 70 115 115 Shots Fired 130 | 18 59 53 Gun 130 | 18 59 53 Cannon . | . . . Launcher . | . . . Special . | . . . Kinetic 34 | 9 5 20 Thermal 96 | 9 54 33 Explosive . | . . . Electromagnetic . | . . . Robot Hit Streak 14 | 6 14 10 Robot Miss Streak 5 | 2 2 5 Penetration Max . | . . . Secondary Targets . | . . . Shots Hit Robots 86 | 14 41 31 Core Hits 40 | 5 19 16 Critical Kills . | . . . Critical Parts Destroyed . | . . . Critical Strikes 5 | 2 3 . Burn 5 | 2 3 . Melee Attacks . | . . . Impact . | . . . Slashing . | . . . Piercing . | . . . Sneak Attacks . | . . . Combat Hostiles . | . . . Follow-up Attacks . | . . . Damage Inflicted 1108 | 166 563 379 Guns 1108 | 166 563 379 Cannons . | . . . Explosions . | . . . Melee . | . . . Ramming . | . . . Kinetic 218 | 78 36 104 Thermal 890 | 88 527 275 Explosive . | . . . Electromagnetic . | . . . Impact . | . . . Slashing . | . . . Piercing . | . . . Highest Corruption . | . . . Average Corruption . | . . . Corruption Purged . | . . . Corruption Blocked . | . . . Overload Shots . | . . . Overflow Damage . | . . . Projectiles . | . . . Explosions . | . . . Melee . | . . . Knockbacks . | . . . Impact . | . . . Kinetic . | . . . Secondary . | . . . Self-Inflicted Damage . | . . . Shots . | . . . Rammed . | . . . Targets Rammed . | . . . Kicked . | . . . Crushed . | . . . Highest Temperature 201 | 36 201 60 Average Temperature 40 | 14 55 23 Received Heat Transfer 437 | . 357 80 Effects 1 | . 1 . Interference 1 | . 1 . Siege Activations . | . . . Robots Corrupted . | . . . Combat Hostiles . | . . . Parts Fried . | . . . Impact Corruptions . | . . . Robots Melted 1 | . 1 . Combat Hostiles 1 | . 1 . Parts Melted 8 | 1 7 . Heat Transferred 2701 | 407 1628 666 Parts Sabotaged . | . . . Parts Stolen . | . . . Parts Stripped . | . . . Power Chain Reactions . | . . . Alert | -11 -10 -10 ------- Run | Yrd Mat Min Peak Influence 134 | 20 134 112 Initial 52 | . 13 52 Average 67 | 8 80 72 Maximum Alert Level . | . . . Low Security (%) 100 | 100 100 100 Level 1 . | . . . Level 2 . | . . . Level 3 . | . . . Level 4 . | . . . Level 5 . | . . . High Security . | . . . Max Security . | . . . Squads Dispatched 1 | . 1 . Investigation 1 | . 1 . Extermination . | . . . Reinforcement . | . . . Assault . | . . . Garrison . | . . . Intercept . | . . . Searches Triggered . | . . . Construction Impeded . | . . . Haulers Reinforced . | . . . Active Scanning Responses . | . . . Cargo Convoy Interrupts . | . . . Stealth | -11 -10 -10 --------- Run | Yrd Mat Min Distress Signals 1 | . 1 . Communications Jammed . | . . . Distress Signals . | . . . Times Spotted 29 | . 16 13 Peak Tracking Total 5 | . 4 5 Tactical Retreats 1 | . . 1 Traps | -11 -10 -10 ------- Run | Yrd Mat Min Traps Triggered . | . . . Indirectly . | . . . Trap Hack Attempts . | . . . Triggered . | . . . Disarmed . | . . . Reprogrammed . | . . . Reused . | . . . Traps Extracted . | . . . Installed . | . . . Triggered . | . . . Machines | -11 -10 -10 ---------- Run | Yrd Mat Min Machines Disabled . | . . . Max in Single Turn . | . . . Machines Repaired . | . . . Machines Dismantled . | . . . Machines Sabotaged . | . . . Overloaded Fab Kills . | . . . Hacking | -11 -10 -10 --------- Run | Yrd Mat Min Machines Accessed 6 | . 6 . Terminals 5 | . 5 . Fabricators . | . . . Repair Stations . | . . . Recycling Units 1 | . 1 . Scanalyzers . | . . . Garrison Access . | . . . Total Hacks 19 | . 19 . Successful 9 | . 9 . Failed 10 | . 10 . Catastrophic . | . . . Database Lockouts . | . . . Manual 13 | . 13 . Terminals 17 | . 17 . Fabricators . | . . . Repair Stations . | . . . Recycling Units 2 | . 2 . Scanalyzers . | . . . Garrison Access . | . . . Terminal Hacks 5 | . 5 . Robot Analysis 2 | . 2 . Prototype ID Bank 1 | . 1 . Surveillance Status 1 | . 1 . Hauler Manifests 1 | . 1 . Fabricator Hacks . | . . . Repair Station Hacks . | . . . Recycling Unit Hacks 1 | . 1 . Retrieve Components 1 | . 1 . Scanalyzer . | . . . Garrison Access Hacks . | . . . Unauthorized Hacks 3 | . 3 . Terminals 2 | . 2 . Botnet 2 | . 2 . Fabricators . | . . . Repair Stations . | . . . Recycling Units 1 | . 1 . Reject 1 | . 1 . Scanalyzers . | . . . Garrison Access . | . . . Data Cores Recovered 1 | . 1 . Used . | . . . Hacking Detections 5 | . 5 . Full Trace Events 2 | . 2 . Feedback Events . | . . . Feedback Blocked . | . . . Robot Schematics Acquired . | . . . Robots Built . | . . . Authchips . | . . . Time . | . . . Total Robot Build Rating . | . . . Part Schematics Acquired . | . . . Parts Built . | . . . Authchips . | . . . Time . | . . . Total Part Build Rating . | . . . Parts Repaired . | . . . Time . | . . . Parts Recycled . | . . . Recycled Matter . | . . . Retrieved Matter . | . . . Retrieved Components 5 | . 5 . Parts Scanalyzed . | . . . Part Schematics Acquired . | . . . Parts Damaged . | . . . Bothacking | -11 -10 -10 ------------ Run | Yrd Mat Min Used RIF Installer . | . . . Robots Hacked . | . . . Non-combat . | . . . Combat . | . . . Robot Hacks Applied . | . . . Relay Couplers Released . | . . . Fabnet Peak Effective % . | . . . Robots Rewired . | . . . Allies Hacked . | . . . Hacks Repelled . | . . . Allies | -11 -10 -10 -------- Run | Yrd Mat Min Total Allies . | . . . Largest Group . | . . . Highest-Rated Group . | . . . Highest-Rated Ally . | . . . Total Orders . | . . . Ally Attacks . | . . . Total Damage . | . . . Kills . | . . . Allies Corrupted . | . . . Allies Melted . | . . . Intel | -11 -10 -10 ------- Run | Yrd Mat Min Robot Analysis Total 2 | . 2 . Derelict Logs Recovered 1 | . . 1 Drone Launches . | . . . Drone Recoveries . | . . . Exploration | -11 -10 -10 ------------- Run | Yrd Mat Min Turns Passed 1075 | 167 699 209 Spaces Moved 455 | 100 292 63 Core 7 | 7 . . Treads 42 | . . 42 Legs 406 | 93 292 21 Wheels . | . . . Hover . | . . . Flight . | . . . Fastest Speed 50 | 50 120 160 Average Speed 164 | 116 177 182 Slowest Speed 240 | 120 190 240 Overloaded Moves . | . . . Propulsion Burnouts . | . . . Robots Hopped . | . . . Cave-ins Triggered . | . . . Exploration Rate (%) 20 | 5 44 11 Regions Visited 2 Branch Regions 1 Pre-discovered Areas . | . . . Known Exits Taken . | . . . Unknown Exits Taken 2 | 1 1 . Scrap Searched 1 | . . 1 Spaces Dug . | . . . Terrain Destroyed . | . . . Melee . | . . . Projectile . | . . . AOE . | . . . Terrain Rammed . | . . . Walls Destroyed . | . . . Machines Disabled . | . . . Actions | -11 -10 -10 --------- Run | Yrd Mat Min Total 650 | 130 412 108 Wait 85 | 7 69 9 Move 453 | 99 291 63 Hop . | . . . Pick Up 16 | 8 6 2 Fast Attach 6 | 6 . . Attach 7 | 1 1 5 Detach . | . . . Swap 12 | . 11 1 Drop 4 | . 4 . Fire 67 | 9 30 28 Melee . | . . . Ram . | . . . Kick . | . . . Crush . | . . . Escape Stasis . | . . . Rewire . | . . . Trap . | . . . Miscellaneous . | . . . Route ------- -11/Scrapyard -10/Materials -10/Mines History --------- Turn | Location | Event 38 | -11/Scrapyard | Discovered new exit (range 16) 168 | -11/Scrapyard | Entered Materials 317 | -10/Materials | Build established: Mutant 662 | -10/Materials | Core integrity fell below 50% 814 | -10/Materials | Discovered new exit (range 14) 819 | -10/Materials | Build established: Scavenger-Mutant 867 | -10/Materials | Entered Mines 883 | -10/Mines | Learned location of 1 exit from Materials 915 | -10/Mines | Core integrity fell below 20% 958 | -10/Mines | Lost 4 parts (1p1n1u1w) 991 | -10/Mines | Assembled infested the area 1076 | -10/Mines | Destroyed by as-77375 with Assembled F-torch Last Messages --------------- 00975_ T-07 Excavator is excavating. 00991_ ALERT: Infestation in the mines, dispatching Demolisher response squad. 00994_ T-07 Excavator is excavating. 01017_ S-10 Pest destroyed. 01021_ Acquired Lgt. Assault Rifle. 01022_ Acquired 15 matter. 01024_ Searching scrap... 01024_ Found Hover Unit. 01024_ Found 19 Matter. 01025_ Acquired 19 matter. 01037_ Ion Engine destroyed. 01040_ as-40077 destroyed. 01052_ as-31009 destroyed. 01057_ as-10418 destroyed. 01063_ Destroyed Asb. F-torch. 01066_ as-50415 destroyed. 01071_ as-76969 destroyed. 01072_ Acquired 9 matter. 01074_ as-33088 destroyed. Map ----- +----------------------------------------------------+ | | | | | | | | | ?????????????????????????????????????????????????? | | ?????????????????????????????????????????????????? | | ??????????????????????????????????####????????#### | | ?????????????????????????????????## ##??????## | | ????????????????????????????????## ######## | | ?????????????????????????????#### = | | ????????????????????????????## ######## | | ??????????????##???????###### ##??????## | | ??????????????# #?????## #####????????## | | ??????????????# ###### ##??????????????# | | ??????????????# ######???????????????? | | ???????????????# ###????????????????????? | | ???????????????### #### ##??????????????????????? | | ?????????????????# #??####???????????????????????? | | ?????????????????# #?????????????????????????????? | | ?????????????????# #?????????????????????????????? | | ?????????????????# #####?????????????????????????? | | ?????????????????# #?????????????????????????? | | ?????????????????#####*#?????????????????????????? | | ?????????????????????# #?????????????????????????? | | ?????????????????????#=#####?????????????????????? | | ?????????????????????#= =@%#?????????????????????? | | ?????????????????????#####a#?????????????????????? | | ??????????????????????????a#?????????????????????? | | ???????????????????????????#?????????????????????? | | ?????????????????????????????????????????????????? | | ?????????????????????????????????????????????????? | | ?????????????????????????????????????????????????? | | ?????????????????????????????????????????????????? | | ?????????????????????????????????????????????????? | | ?????????????????????????????????????????????????? | | ?????????????????????????????????????????????????? | | ?????????????????????????????????????????????????? | | ?????????????????????????????????????????????????? | | ?????????????????????????????????????????????????? | | ?????????????????????????????????????????????????? | | ?????????????????????????????????????????????????? | | ?????????????????????????????????????????????????? | | ?????????????????????????????????????????????????? | | ?????????????????????????????????????????????????? | | ?????????????????????????????????????????????????? | | ?????????????????????????????????????????????????? | | ?????????????????????????????????????????????????? | | ?????????????????????????????????????????????????? | | ?????????????????????????????????????????????????? | | ?????????????????????????????????????????????????? | +----------------------------------------------------+ Best States ------------- Heat Dissipation 39 Energy Generation 10 Energy Capacity 250 Matter Stores 300 Matter Capacity 300 Sight Range 16 Terrain Scan Density 10 Evasion (%) 55 Recoil Reduction 2 Item Schematics ----------------- None Robot Schematics ------------------ None Fabricated ------------ Nothing Alien Tech Used ----------------- None Achievements -------------- None Challenges ------------ None Game ------ Seed SchematicMappingBlade Manual? 0 Play Time 00:12:16 Cumulative 90.9 hours Start 2024.07.03 @ 21:07:05 End 2024.07.04 @ 00:17:34 Sessions 2 Manual Loads 0 Difficulty Rogue Special Mode None Game No. 53 Rogue 50 Adventurer 3 Explorer 0 Win Type - Total 2 Types 2/0/0/0/0/0/0/0/0 Lore% 49 Gallery% 51 Achievement% 43 Wizard Run 0 Options --------- Layout 1 ASCII 0 Keyboard 1 Movement Vi Keybinds 1 Fullscreen 2 Font 24/Smallcaps Map View 50x35 Zoom Use 0% Tactical HUD 1 Map Filters NONE Filters NONE Steam 1 RUN: a53a8f3d-be50-4f32-8f9a-4a65b8c3318b